{"text_format":"3","workbook":"xlsx","n_sheets":1,"sheets":["岗位表"],"not_rendered":{"external_links":1,"defined_names":2},"read":"whole","date_system":"1900"}

{"sheet":"岗位表","index":0,"n_rows":41,"n_cols":18,"rows_kept":41,"merged":[[0,0,0,17]]}
["2023年合肥市瑶海区新任教师公开招聘岗位表"]
["县区","学校名称","招聘岗位","学段","学科","学历要求","学位要求","专业要求","教师资格证要求","普通话  要求","年龄要求","性别要求","是否单列计划","计划人数","城区计划","乡镇计划","开考比例","备注"]
["瑶海区","瑶海区区属学校","高中数学组","高级中学","数学(高级中学)","硕士研究生及以上","无要求","专业不限","高中及以上与岗位学科一致","二级乙等及以上","35周岁以下","无","否",1,1,"0","1:3","合肥市第十一中学1名"]
["瑶海区","瑶海区区属学校","高中心理健康教育","高级中学","心理健康教育（高级中学）","硕士研究生及以上","无要求","专业不限","高中及以上与岗位学科一致","二级乙等及以上","35周岁以下","无","否",1,1,"0","1:3","合肥市第十一中学1名"]
["瑶海区","瑶海区区属学校","初中语文A组","初级中学","语文(初级中学)","本科及以上","无要求","专业不限","初中及以上与岗位学科一致","二级甲等及以上","35周岁以下","男","否",6,6,"0","1:3","1.合肥市第三十八中学北校1名，合肥市第三十八中学东校1名，合肥市第三十八中学瑶海湾校区2名，合肥市第四十中学1名，合肥市行知学校1名。2.该岗位限招男性。3.取得普通话二甲及以上证书。"]
["瑶海区","瑶海区区属学校","初中语文B组","初级中学","语文(初级中学)","本科及以上","无要求","专业不限","初中及以上与岗位学科一致","二级甲等及以上","35周岁以下","女","否",6,6,"0","1:3","1.合肥市第三十八中学北校1名，合肥市第三十八中学东校1名，合肥市第三十八中学瑶海湾校区2名，合肥市第四十中学1名，合肥市行知学校1名。2.该岗位限招女性。3.取得普通话二甲及以上证书。"]
["瑶海区","瑶海区区属学校","初中语文C组","初级中学","语文(初级中学)","本科及以上","无要求","专业不限","初中及以上与岗位学科一致","二级甲等及以上","35周岁以下","无","否",5,5,"0","1:3","1.合肥市第三十八中学滨河校区3名，合肥市行知学校站塘分校1名，合肥市裕溪路学校（初中部）1名。2.取得普通话二甲及以上证书。"]
["瑶海区","瑶海区区属学校","初中数学A组","初级中学","数学(初级中学)","本科及以上","无要求","专业不限","初中及以上与岗位学科一致","二级乙等及以上","35周岁以下","男","否",5,5,"0","1:3","1.合肥市第三十八中学本部1名，合肥市第三十八中学瑶海湾校区2名，合肥市第三十八中学滨河校区2名。2.该岗位限招男性。"]
["瑶海区","瑶海区区属学校","初中数学B组","初级中学","数学(初级中学)","本科及以上","无要求","专业不限","初中及以上与岗位学科一致","二级乙等及以上","35周岁以下","女","否",5,5,"0","1:3","1.合肥市第三十八中学本部1名，合肥市第三十八中学瑶海湾校区2名，合肥市第三十八中学滨河校区2名。2.该岗位限招女性。"]
["瑶海区","瑶海区区属学校","初中数学C组","初级中学","数学(初级中学)","本科及以上","无要求","专业不限","初中及以上与岗位学科一致","二级乙等及以上","35周岁以下","无","否",7,7,"0","1:3","合肥市第三十八中学北校3名，合肥市第三十八中学东校1名，合肥市行知学校1名，合肥市行知学校站塘分校1名，合肥市裕溪路学校（初中部）1名。"]
["瑶海区","瑶海区区属学校","初中英语组","初级中学","英语(初级中学)","本科及以上","无要求","专业不限","初中及以上与岗位学科一致","二级乙等及以上","35周岁以下","男","否",5,5,"0","1:3","1.合肥市第三十八中学本部1名，合肥市第三十八中学东校1名，合肥市第三十八中学瑶海湾校区2名，合肥市行知学校1名。2.该岗位限招男性。"]
["瑶海区","瑶海区区属学校","初中英语组","初级中学","英语(初级中学)","本科及以上","无要求","专业不限","初中及以上与岗位学科一致","二级乙等及以上","35周岁以下","女","否",5,5,"0","1:3","1.合肥市第三十八中学本部1名，合肥市第三十八中学东校1名，合肥市第三十八中学瑶海湾校区2名，合肥市行知学校1名。2.该岗位限招女性。"]
["瑶海区","瑶海区区属学校","初中英语组","初级中学","英语(初级中学)","本科及以上","无要求","专业不限","初中及以上与岗位学科一致","二级乙等及以上","35周岁以下","无","否",5,5,"0","1:3","合肥市第三十八中学北校1名，合肥市第三十八中学滨河校区3名，合肥市行知学校站塘分校1名。"]
["瑶海区","瑶海区区属学校","初中道德与法治组","初级中学","道德与法治(初级中学)","本科及以上","无要求","专业不限","初中及以上与岗位学科一致","二级乙等及以上","35周岁以下","无","否",6,6,"0","1:3","1.合肥市第三十八中学东校1名，合肥市第三十八中学瑶海湾校区1名，合肥市第三十八中学滨河校区2名，合肥市行知学校1名，合肥市行知学校站塘分校1名。2.具备初（高）中思想政治、初（高）中思想品德学科教师资格证书，也可以报考本岗位。"]
["瑶海区","瑶海区区属学校","初中历史组","初级中学","历史(初级中学) ","本科及以上","无要求","专业不限","初中及以上与岗位学科一致","二级乙等及以上","35周岁以下","无","否",{"$f":"SUM(L15:IV15)","v":7},{"$f":"SUM(M15:IW15)","v":7},"0","1:3","合肥市第三十八中学北校1名，合肥市第三十八中学东校1名，合肥市第三十八中学瑶海湾校区1名，合肥市第三十八中学滨河校区2名，合肥市第四十中学1名，合肥市行知学校站塘分校1名。"]
["瑶海区","瑶海区区属学校","初中物理组","初级中学","物理(初级中学)","本科及以上","无要求","专业不限","初中及以上与岗位学科一致","二级乙等及以上","35周岁以下","无","否",8,8,"0","1:3","合肥市第三十八中学本部1名，合肥市第三十八中学北校2名，合肥市第三十八中学东校1名，合肥市第三十八中学瑶海湾校区3名，合肥市行知学校站塘分校1名。"]
["瑶海区","瑶海区区属学校","初中化学组","初级中学","化学(初级中学)","本科及以上","无要求","专业不限","初中及以上与岗位学科一致","二级乙等及以上","35周岁以下","无","否",2,2,"0","1:3","合肥市第三十八中学北校1名，合肥市行知学校站塘分校1名。"]
["瑶海区","瑶海区区属学校","初中地理组","初级中学","地理(初级中学)","本科及以上","无要求","专业不限","初中及以上与岗位学科一致","二级乙等及以上","35周岁以下","无","否",3,3,"0","1:3","合肥市第三十八中学瑶海湾校区1名，合肥市第三十八中学滨河校区1名，合肥市第四十中学1名。"]
["瑶海区","瑶海区区属学校","初中生物组","初级中学","生物(初级中学)","本科及以上","无要求","专业不限","初中及以上与岗位学科一致","二级乙等及以上","35周岁以下","无","否",2,2,"0","1:3","合肥市第三十八中学瑶海湾校区1名，合肥市第三十八中学滨河校区1名。"]
["瑶海区","瑶海区区属学校","初中音乐组","初级中学","音乐(初级中学)","本科及以上","无要求","专业不限","初中及以上与岗位学科一致","二级乙等及以上","35周岁以下","无","否",1,1,"0","1:3","合肥市第三十八中学瑶海湾校区1名。"]
["瑶海区","瑶海区区属学校","初中体育组","初级中学","体育与健康(初级中学)","本科及以上","无要求","专业不限","初中及以上与岗位学科一致","二级乙等及以上","35周岁以下","无","否",9,9,"0","1:3","合肥市第三十八中学北校1名，合肥市第三十八中学瑶海湾校区2名，合肥市第三十八中学滨河校区1名，合肥市第五十五中学东校1名，合肥市行知学校3名，合肥市行知学校站塘分校1名。"]
["瑶海区","瑶海区区属学校","初中信息技术组","初级中学","信息技术(初级中学)","本科及以上","无要求","专业不限","初中及以上与岗位学科一致","二级乙等及以上","35周岁以下","无","否",2,2,"0","1:3","合肥市第三十八中学瑶海湾校区1名，合肥市第三十八中学滨河校区1名。"]
["瑶海区","瑶海区区属学校","小学语文A组","小学","小学语文(小学)","专科及以上","无要求","专业不限","小学及以上与岗位学科一致","二级甲等及以上","35周岁以下","男","否",13,13,"0","1:2","1.合肥市行知小学1名，合肥市蚌埠路第二小学1名，合肥市明皇路小学3名，合肥市马岗实验小学4名，合肥市郎溪路小学4名。2.该岗位限招男性。3.具备小学全科教师资格证书，也可以报考本岗位。4.取得普通话二甲及以上证书。"]
["瑶海区","瑶海区区属学校","小学语文B组","小学","小学语文(小学)","专科及以上","无要求","专业不限","小学及以上与岗位学科一致","二级甲等及以上","35周岁以下","女","否",13,13,"0","1:2","1.合肥市行知小学1名，合肥市蚌埠路第二小学1名，合肥市明皇路小学3名，合肥市马岗实验小学4名，合肥市郎溪路小学4名。2.该岗位限招女性。3.具备小学全科教师资格证书，也可以报考本岗位。4.取得普通话二甲及以上证书。"]
["瑶海区","瑶海区区属学校","小学语文C组","小学","小学语文(小学)","专科及以上","无要求","专业不限","小学及以上与岗位学科一致","二级甲等及以上","35周岁以下","男","否",13,13,"0","1:2","1.合肥市滁州路小学2名，合肥市和平小学第三小学1名，合肥市和平小学第二小学2名，合肥市和平小学第四小学1名，合肥市长淮新村小学3名，合肥市临泉路第二小学1名，合肥市元一名城小学3名。2.该岗位限招男性。3.具备小学全科教师资格证书，也可以报考本岗位。4.取得普通话二甲及以上证书。"]
["瑶海区","瑶海区区属学校","小学语文D组","小学","小学语文(小学)","专科及以上","无要求","专业不限","小学及以上与岗位学科一致","二级甲等及以上","35周岁以下","女","否",13,13,"0","1:2","1.合肥市滁州路小学2名，合肥市和平小学第三小学1名，合肥市和平小学第二小学2名，合肥市和平小学第四小学1名，合肥市长淮新村小学3名，合肥市临泉路第二小学1名，合肥市元一名城小学3名。2.该岗位限招女性。3.具备小学全科教师资格证书，也可以报考本岗位。4.取得普通话二甲及以上证书。"]
["瑶海区","瑶海区区属学校","小学语文E组","小学","小学语文(小学)","专科及以上","无要求","专业不限","小学及以上与岗位学科一致","二级甲等及以上","35周岁以下","无","否",12,12,"0","1:2","1.合肥市和平小学3名，合肥市大通路小学7名，合肥市胜利路小学1名，合肥市裕溪路学校（小学部）1名。2.具备小学全科教师资格证书，也可以报考本岗位。3.取得普通话二甲及以上证书。"]
["瑶海区","瑶海区区属学校","小学语文F组","小学","小学语文(小学)","专科及以上","无要求","专业不限","小学及以上与岗位学科一致","二级甲等及以上","35周岁以下","无","否",12,12,"0","1:2","1.合肥市和平小学瑶海湾校区3名，合肥市少儿艺术学校7名，合肥市东风小学1名，合肥市香格里拉小学1名。2.具备小学全科教师资格证书，也可以报考本岗位。3.取得普通话二甲及以上证书。"]
["瑶海区","瑶海区区属学校","小学数学A组","小学","小学数学(小学)","专科及以上","无要求","专业不限","小学及以上与岗位学科一致","二级乙等及以上","35周岁以下","男","否",14,14,"0","1:2","1.合肥市行知小学3名，合肥市蚌埠路第二小学1名，合肥市明皇路小学1名，合肥市和平小学第三小学1名，合肥市大通路小学1名，合肥市郎溪路小学4名，合肥市长淮新村小学1名，合肥市马岗实验小学2名。2.该岗位限招男性。3.具备小学全科教师资格证书，也可以报考本岗位。"]
["瑶海区","瑶海区区属学校","小学数学B组","小学","小学数学(小学)","专科及以上","无要求","专业不限","小学及以上与岗位学科一致","二级乙等及以上","35周岁以下","女","否",14,14,"0","1:2","1.合肥市行知小学3名，合肥市蚌埠路第二小学1名，合肥市明皇路小学1名，合肥市和平小学第三小学1名，合肥市大通路小学1名，合肥市郎溪路小学4名，合肥市长淮新村小学1名，合肥市马岗实验小学2名。2.该岗位限招女性。3.具备小学全科教师资格证书，也可以报考本岗位。"]
["瑶海区","瑶海区区属学校","小学数学C组","小学","小学数学(小学)","专科及以上","无要求","专业不限","小学及以上与岗位学科一致","二级乙等及以上","35周岁以下","无","否",15,15,"0","1:2","1.合肥市和平小学1名，合肥市和平小学瑶海湾校区1名，合肥市和平小学第二小学1名，合肥市滁州路小学3名，合肥市胜利路小学1名，合肥市少儿艺术学校3名，合肥市临泉路第二小学1名，合肥市元一名城小学3名，合肥市裕溪路学校（小学部）1名。2.具备小学全科教师资格证书，也可以报考本岗位。"]
["瑶海区","瑶海区区属学校","小学英语A组","小学","小学英语(小学)","专科及以上","无要求","专业不限","小学及以上与岗位学科一致","二级乙等及以上","35周岁以下","男","否",3,3,"0","1:3","1.合肥市行知小学1名，合肥市郎溪路小学2名。2.该岗位限招男性。3.具备小学全科教师资格证书，也可以报考本岗位。"]
["瑶海区","瑶海区区属学校","小学英语B组","小学","小学英语(小学)","专科及以上","无要求","专业不限","小学及以上与岗位学科一致","二级乙等及以上","35周岁以下","女","否",3,3,"0","1:3","1.合肥市行知小学1名，合肥市郎溪路小学2名。2.该岗位限招女性。3.具备小学全科教师资格证书，也可以报考本岗位。"]
["瑶海区","瑶海区区属学校","小学英语C组","小学","小学英语(小学)","专科及以上","无要求","专业不限","小学及以上与岗位学科一致","二级乙等及以上","35周岁以下","无","否",13,13,"0","1:2","1.合肥市庐东学校1名，合肥市蚌埠路第二小学1名，合肥市琥珀名城小学1名，合肥市和平小学第三小学1名，合肥市和平小学第二小学1名，合肥市大通路小学1名，合肥市少儿艺术学校1名，合肥市马岗实验小学3名，合肥市临泉路第一小学1名，合肥市元一名城小学1名，合肥市裕溪路学校（小学部）1名。2.具备小学全科教师资格证书，也可以报考本岗位。"]
["瑶海区","瑶海区区属学校","小学音乐组","小学","小学音乐(小学)","专科及以上","无要求","专业不限","小学及以上与岗位学科一致","二级乙等及以上","35周岁以下","无","否",{"$f":"SUM(M35:IM35)","v":7},{"$f":"SUM(N35:IN35)","v":7},"0","1:3","1.合肥市琥珀名城小学1名，合肥市和平小学1名，合肥市和平小学瑶海湾校区1名，合肥市少儿艺术学校1名，合肥市郎溪路小学3名。2.具备小学全科教师资格证书，也可以报考本岗位。"]
["瑶海区","瑶海区区属学校","小学体育组","小学","小学体育(小学)","专科及以上","无要求","专业不限","小学及以上与岗位学科一致","二级乙等及以上","35周岁以下","无","否",10,10,"0","1:2","1.合肥市行知小学1名，合肥市琥珀名城小学2名，合肥市明皇路小学1名，合肥市和平小学1名，合肥市和平小学第四小学1名，合肥市大通路小学1名，合肥市少儿艺术学校1名，合肥市郎溪路小学2名。2.具备小学全科教师资格证书，也可以报考本岗位。"]
["瑶海区","瑶海区区属学校","小学美术组","小学","小学美术(小学)","专科及以上","无要求","专业不限","小学及以上与岗位学科一致","二级乙等及以上","35周岁以下","无","否",5,5,"0","1:3","1.合肥市和平小学2名，合肥市和平小学第三小学1名，合肥市少儿艺术学校1名，合肥市郎溪路小学1名。2.具备小学全科教师资格证书，也可以报考本岗位。"]
["瑶海区","瑶海区区属学校","小学信息技术组","小学","小学信息技术(小学)","专科及以上","无要求","专业不限","小学及以上与岗位学科一致","二级乙等及以上","35周岁以下","无","否",5,5,"0","1:3","1.合肥市庐东学校1名，合肥市明皇路小学1名，合肥市和平小学1名，合肥市和平小学第四小学1名，合肥市少儿艺术学校1名。2.具备小学全科教师资格证书，也可以报考本岗位。"]
["瑶海区","瑶海区区属学校","小学科学组","小学","小学科学(小学)","专科及以上","无要求","专业不限","小学及以上与岗位学科一致","二级乙等及以上","35周岁以下","无","否",3,3,"0","1:3","1.合肥市和平小学1名，合肥市少儿艺术学校1名，合肥市香格里拉小学1名。2.具备小学全科、初（高）中物理、初（高）中化学、初（高）中生物、初（高）中地理学科教师资格证书，也可以报考本岗位。"]
["瑶海区","瑶海区区属学校","小学心理健康教育组","小学","小学心理健康教育       (小学)","专科及以上","无要求","专业不限","小学及以上与岗位学科一致","二级乙等及以上","35周岁以下","无","否",5,5,"0","1:3","1.合肥市行知小学1名，合肥市庐东学校1名，合肥市明皇路小学1名，合肥市和平小学1名，合肥市郎溪路小学1名。2.具备小学全科教师资格证书，也可以报考本岗位。"]
["瑶海区","瑶海区区属学校","小学道德与法治组","小学","小学道德与法治          (小学)","专科及以上","无要求","专业不限","小学及以上与岗位学科一致","二级乙等及以上","35周岁以下","无","否",3,3,"0","1:3","1.合肥市琥珀名城小学1名，合肥市明皇路小学1名，合肥市郎溪路小学1名。2.具备小学及以上思想政治、小学及以上思想品德、小学及以上品德与社会、小学及以上品德与生活、小学全科教师资格证书，也可以报考本岗位。"]